fUSD/lending_fUSD_20250612
["ID","MTS","AMOUNT","RATE_DAILY","PERIOD"]
[365469665,1749689449093,-2251.0,0.00019315,2]
[365469666,1749689449103,-10000.0,0.00019318,2]
[365469667,1749689449113,-10000.0,0.00019318,2]
[365469668,1749689449122,-151.0,0.00019318,2]
[365469669,1749689449133,-151.0,0.00019318,2]
[365469670,1749689449143,-151.0,0.00019318,2]
[365469671,1749689449153,-151.0,0.00019318,2]
[365469672,1749689449163,-248.729114,0.00019318,2]
[365469673,1749689449172,-248.729114,0.00019318,2]
[365469674,1749689449182,-151.0,0.00019318,2]
[365469675,1749689449191,-151.0,0.00019318,2]
[365469676,1749689449202,-696.958054,0.00019318,2]
[365469677,1749689449211,-696.958054,0.00019318,2]
[365469678,1749689449221,-2165.678112,0.00019318,2]
[365469679,1749689449231,-2165.678112,0.00019318,2]
[365469680,1749689449240,-151.0,0.00019318,2]
[365469681,1749689449250,-151.0,0.00019318,2]
[365469682,1749689449261,-214.608094,0.00019318,2]
[365469683,1749689449270,-214.608094,0.00019318,2]
[365469684,1749689449281,-246.213799,0.00019318,2]
[365469685,1749689449291,-246.213799,0.00019318,2]
[365469686,1749689449302,-284.902819,0.00019318,2]
[365469687,1749689449312,-284.902819,0.00019318,2]
[365469688,1749689449322,-151.0,0.00019318,2]
[365469689,1749689449332,-151.0,0.00019318,2]
[365469690,1749689449343,-1407.554571,0.00019318,2]
[365469691,1749689449353,-1407.554571,0.00019318,2]
[365469692,1749689449363,-206.366026,0.00019318,2]
[365469693,1749689449373,-206.366026,0.00019318,2]
[365469694,1749689449383,-151.0,0.00019318,2]
[365469695,1749689449394,-151.0,0.00019318,2]
[365469696,1749689449405,-238.781851,0.00019318,2]
[365469697,1749689449415,-238.781851,0.00019318,2]
[365469698,1749689449425,-3491.21364,0.00019318,2]
[365469699,1749689449434,-3491.21364,0.00019318,2]
[365469700,1749689449444,-3491.21364,0.00019318,2]
[365469701,1749689449454,-3491.21364,0.00019318,2]
[365469702,1749689449464,-479.068402,0.00019318,2]
[365469703,1749689449474,-479.068402,0.00019318,2]
[365469704,1749689449484,-151.0,0.00019318,2]
[365469705,1749689449495,-203.2959,0.00019318,2]
[365469706,1749689449505,-161.04036,0.00019318,2]
[365469707,1749689449516,-500.0,0.00019318,2]
[365469708,1749689449525,-203.2959,0.00019318,2]
[365469709,1749689449536,-161.04036,0.00019318,2]
[365469710,1749689449545,-493.468363,0.00019318,2]
[365469711,1749689449555,-493.468363,0.00019318,2]
[365469712,1749689449565,-166.1,0.00019318,2]
[365469713,1749689449574,-166.1,0.00019318,2]
[365469714,1749689449584,-303.801523,0.00019318,2]
[365469715,1749689449593,-303.801523,0.00019318,2]
[365469716,1749689449604,-192885.55240509,0.00019318,2]
[365469717,1749689449615,-1101.55414013,0.00019335,5]
[365469718,1749689449625,-647.0,0.00019336,2]
[365469719,1749689449634,-151.0,0.00019336,2]
[365469720,1749689449644,-234.151932,0.00019336,2]
[365469721,1749689449655,-151.0,0.00019336,2]
[365469722,1749689449664,-151.0,0.00019336,2]
[365469723,1749689449674,-151.0,0.00019336,2]
[365469724,1749689449684,-151.0,0.00019336,2]
[365469725,1749689449694,-151.0,0.00019336,2]
[365469726,1749689449704,-151.0,0.00019336,2]
[365469727,1749689449713,-151.0,0.00019336,2]
[365469728,1749689449723,-151.0,0.00019336,2]
[365469729,1749689449732,-151.0,0.00019336,2]
[365469730,1749689449742,-151.0,0.00019336,2]
[365469731,1749689449751,-151.0,0.00019336,2]
[365469732,1749689449760,-151.0,0.00019336,2]
[365469733,1749689449771,-151.0,0.00019336,2]
[365469734,1749689449783,-151.0,0.00019336,2]
[365469735,1749689449793,-151.0,0.00019336,2]
[365469736,1749689449802,-151.0,0.00019336,2]
[365469737,1749689449812,-185.079072,0.00019336,2]
[365469738,1749689449822,-151.0,0.00019336,2]
[365469739,1749689449831,-151.0,0.00019336,2]
[365469740,1749689449840,-151.0,0.00019336,2]
[365469741,1749689449851,-151.0,0.00019336,2]
[365469742,1749689449860,-557.133509,0.00019336,2]
[365469743,1749689449870,-557.133509,0.00019336,2]
[365469744,1749689449880,-419.262792,0.00019336,2]
[365469745,1749689449890,-419.262792,0.00019336,2]
[365469746,1749689449901,-151.0,0.00019336,2]
[365469747,1749689449910,-151.0,0.00019336,2]
[365469748,1749689449920,-419.262792,0.00019336,2]
[365469749,1749689449931,-419.262792,0.00019336,2]
[365469750,1749689449941,-151.0,0.00019336,2]
[365469751,1749689449951,-151.0,0.00019336,2]
[365469752,1749689449962,-1175.668954,0.00019336,2]
[365469753,1749689449971,-1175.668954,0.00019336,2]
[365469754,1749689449981,-1175.668954,0.00019336,2]
[365469755,1749689449991,-1175.668954,0.00019336,2]
[365469756,1749689450001,-1798.156048,0.00019336,2]
[365469757,1749689450011,-1798.156048,0.00019336,2]
[365469758,1749689450021,-260.192314,0.00019336,2]
[365469759,1749689450031,-260.192314,0.00019336,2]
[365469760,1749689450041,-1798.156048,0.00019336,2]
[365469761,1749689450050,-1798.156048,0.00019336,2]
[365469762,1749689450060,-260.192314,0.00019336,2]
[365469763,1749689450070,-260.192314,0.00019336,2]
[365469764,1749689450080,-151.0,0.00019336,2]
[365469765,1749689450090,-151.0,0.00019336,2]
[365469766,1749689450100,-151.0,0.00019336,2]
[365469767,1749689450110,-205.817802,0.00019336,2]
[365469768,1749689450120,-205.817802,0.00019336,2]
[365469769,1749689450130,-205.817802,0.00019336,2]
[365469770,1749689450140,-205.817802,0.00019336,2]
[365469771,1749689450152,-151.0,0.00019336,2]
[365469772,1749689450162,-151.0,0.00019336,2]
[365469773,1749689450173,-203.476332,0.00019336,2]
[365469774,1749689450183,-151.0,0.00019336,2]
[365469775,1749689450194,-715.132166,0.00019336,2]
[365469776,1749689450207,-715.132166,0.00019336,2]
[365469777,1749689450228,-151.0,0.00019336,2]
[365469778,1749689450245,-151.0,0.00019336,2]
[365469779,1749689450256,-151.0,0.00019336,2]
[365469780,1749689450278,-195.016032,0.00019336,2]
[365469781,1749689450295,-195.016032,0.00019336,2]
[365469782,1749689450306,-151.0,0.00019336,2]
[365469783,1749689450316,-1271.517088,0.00019336,2]
[365469784,1749689450326,-1271.517088,0.00019336,2]
[365469785,1749689450337,-151.0,0.00019336,2]
[365469786,1749689450348,-151.0,0.00019336,2]
[365469787,1749689450358,-265.757135,0.00019336,2]
[365469788,1749689450368,-265.757135,0.00019336,2]
[365469789,1749689450378,-411.829628,0.00019336,2]
[365469790,1749689450388,-411.829628,0.00019336,2]
[365469791,1749689450399,-151.0,0.00019339,2]
[365469792,1749689450410,-415.07379,0.00019339,2]
[365469793,1749689450420,-415.07379,0.00019339,2]
[365469794,1749689450430,-227.232985,0.00019339,2]
[365469795,1749689450440,-227.232985,0.00019339,2]
[365469796,1749689450450,-175.601561,0.00019339,2]
[365469797,1749689450460,-175.601561,0.00019339,2]
[365469798,1749689450470,-151.0,0.00019339,2]
[365469799,1749689450479,-151.0,0.00019339,2]
[365469800,1749689450489,-151.0,0.00019339,2]
[365469801,1749689450498,-211.140593,0.00019339,2]
[365469802,1749689450508,-243.76123,0.00019339,2]
[365469803,1749689450517,-243.76123,0.00019339,2]
[365469804,1749689450527,-151.0,0.00019339,2]
[365469805,1749689450537,-167.358582,0.00019339,2]
[365469806,1749689450547,-167.358582,0.00019339,2]
[365469807,1749689450556,-151.0,0.00019339,2]
[365469808,1749689450566,-151.0,0.00019339,2]
[365469809,1749689450576,-151.0,0.00019339,2]
[365469810,1749689450585,-151.0,0.00019339,2]
[365469811,1749689450595,-151.0,0.00019339,2]
[365469812,1749689450604,-151.0,0.00019339,2]
[365469813,1749689450614,-151.0,0.00019339,2]
[365469814,1749689450624,-151.0,0.00019339,2]
[365469815,1749689450634,-1528.994889,0.00019339,2]
[365469816,1749689450643,-1528.994889,0.00019339,2]
[365469817,1749689450655,-210.820258,0.00019339,2]
[365469818,1749689450664,-250.591462,0.00019339,2]
[365469819,1749689450674,-250.591462,0.00019339,2]
[365469820,1749689450683,-151.0,0.00019339,2]
[365469821,1749689450694,-151.0,0.00019339,2]
[365469822,1749689450703,-151.0,0.00019339,2]
[365469823,1749689450713,-232.267009,0.00019339,2]
[365469824,1749689450722,-232.267009,0.00019339,2]
[365469825,1749689450732,-151.0,0.00019339,2]
[365469826,1749689450741,-151.0,0.00019339,2]
[365469827,1749689450751,-165.923528,0.00019339,2]
[365469828,1749689450760,-165.923528,0.00019339,2]
[365469829,1749689450770,-377.062663,0.00019339,2]
[365469830,1749689450779,-377.062663,0.00019339,2]
[365469831,1749689450789,-8575.01,0.00019339,2]
[365469832,1749689450798,-2031.81199855,0.00019341,3]
[365469833,1749689450807,-170.31,0.00019341,2]
[365469834,1749689450818,-138849.75026431,0.00019341,2]
[365469835,1749689451790,-665.159998,0.00019341,2]
[365469836,1749689451802,-892.0,0.00019341,2]
[365469837,1749689451814,-747.21335661,0.00019341,2]
[365469838,1749689451840,-11277.95119962,0.00019341,2]
[365469839,1749689452215,-898.28561604,0.00019341,2]
[365469840,1749689452226,-311.85911912,0.00019341,2]
[365469841,1749689452238,-403.27304688,0.00019341,2]
[365469842,1749689452248,-715.132166,0.00019341,2]
[365469843,1749689452257,-151.0,0.00019341,2]
[365469844,1749689452267,-151.0,0.00019341,2]
[365469845,1749689452277,-151.0,0.00019341,2]
[365469846,1749689452286,-151.0,0.00019341,2]
[365469847,1749689452296,-195.016032,0.00019341,2]
[365469848,1749689452305,-151.0,0.00019341,2]
[365469849,1749689452316,-151.0,0.00019341,2]
[365469850,1749689452326,-151.0,0.00019341,2]
[365469851,1749689452336,-195.016032,0.00019341,2]
[365469852,1749689452345,-983.26357058,0.00019341,2]
[365469853,1749689452355,-214.608094,0.00019341,2]
[365469854,1749689452365,-214.608094,0.00019341,2]
[365469855,1749689452375,-214.608094,0.00019341,2]
[365469856,1749689452385,-214.608094,0.00019341,2]
[365469857,1749689452394,-214.608094,0.00019341,2]
[365469858,1749689452405,-214.608094,0.00019341,2]
[365469859,1749689452414,-151.0,0.00019341,2]
[365469860,1749689452424,-1271.517088,0.00019341,2]
[365469861,1749689452435,-1271.517088,0.00019341,2]
[365469862,1749689452445,-284.902819,0.00019341,2]
[365469863,1749689452455,-284.902819,0.00019341,2]
[365469864,1749689452466,-284.902819,0.00019341,2]
[365469865,1749689452476,-284.902819,0.00019341,2]
[365469866,1749689452485,-284.902819,0.00019341,2]
[365469867,1749689452495,-284.902819,0.00019341,2]
[365469868,1749689452505,-151.0,0.00019341,2]
[365469869,1749689452514,-151.0,0.00019341,2]
[365469870,1749689452524,-175.976774,0.00019341,2]
[365469871,1749689452534,-1407.554571,0.00019341,2]
[365469872,1749689452544,-1407.554571,0.00019341,2]
[365469873,1749689452553,-206.366026,0.00019341,2]
[365469874,1749689452563,-206.366026,0.00019341,2]
[365469875,1749689452572,-206.366026,0.00019341,2]
[365469876,1749689452581,-206.366026,0.00019341,2]
[365469877,1749689452591,-206.366026,0.00019341,2]
[365469878,1749689452600,-206.366026,0.00019341,2]
[365469879,1749689452610,-298.867228,0.00019341,2]
[365469880,1749689452623,-151.0,0.00019341,2]
[365469881,1749689452632,-265.757135,0.00019341,2]
[365469882,1749689452642,-265.757135,0.00019341,2]
[365469883,1749689452653,-238.781851,0.00019341,2]
[365469884,1749689452663,-238.781851,0.00019341,2]
[365469885,1749689452672,-3491.21364,0.00019341,2]
[365469886,1749689452682,-3491.21364,0.00019341,2]
[365469887,1749689452692,-479.068402,0.00019341,2]
[365469888,1749689452702,-411.829628,0.00019341,2]
[365469889,1749689452713,-479.068402,0.00019341,2]
[365469890,1749689452722,-411.829628,0.00019341,2]
[365469891,1749689452732,-514.69,0.00019341,2]
[365469892,1749689452742,-151.0,0.00019341,2]
[365469893,1749689452751,-514.69,0.00019341,2]
[365469894,1749689452760,-514.69,0.00019341,2]
[365469895,1749689452770,-514.69,0.00019341,2]
[365469896,1749689452779,-514.69,0.00019341,2]
[365469897,1749689452788,-514.69,0.00019341,2]
[365469898,1749689452798,-514.69,0.00019341,2]
[365469899,1749689452807,-514.69,0.00019341,2]
[365469900,1749689452817,-1587.8520321,0.00019341,2]
[365469901,1749689452829,-295.12367534,0.00019341,2]
[365469902,1749689452841,-1263.65429256,0.00019341,2]
[365469903,1749689452850,-3146.63,0.00019341,2]
[365469904,1749689452860,-3146.63,0.00019341,2]
[365469905,1749689452869,-3146.63,0.00019341,2]
[365469906,1749689452879,-3146.63,0.00019341,2]
[365469907,1749689452889,-3146.63,0.00019341,2]
[365469908,1749689452900,-3146.63,0.00019341,2]
[365469909,1749689452909,-3146.63,0.00019341,2]
[365469910,1749689452919,-203.2959,0.00019341,2]
[365469911,1749689452929,-161.04036,0.00019341,2]
[365469912,1749689452939,-500.0,0.00019341,2]
[365469913,1749689452948,-203.2959,0.00019341,2]
[365469914,1749689452958,-161.04036,0.00019341,2]
[365469915,1749689452967,-493.468363,0.00019341,2]
[365469916,1749689452977,-493.468363,0.00019341,2]
[365469917,1749689452987,-493.468363,0.00019341,2]
[365469918,1749689452996,-493.468363,0.00019341,2]
[365469919,1749689453005,-166.1,0.00019341,2]
[365469920,1749689453015,-166.1,0.00019341,2]
[365469921,1749689453024,-303.801523,0.00019341,2]
[365469922,1749689453035,-303.801523,0.00019341,2]
[365469923,1749689453044,-500.0,0.00019341,2]
[365469924,1749689453054,-300.0,0.00019341,2]
[365469925,1749689453063,-300.0,0.00019341,2]
[365469926,1749689453073,-300.0,0.00019341,2]
[365469927,1749689453083,-300.0,0.00019341,2]
[365469928,1749689453092,-187847.58668944,0.00019341,3]
[365469929,1749689453104,-2315.1,0.00019341,3]
[365469930,1749689453115,-3857.39176998,0.00019341,3]
[365469931,1749689453127,-18425.02667075,0.00019341,3]
[365469940,1749689587964,4000.0,0.0001799,2]
[365469941,1749689627372,346.29,0.000246,120]
[365469942,1749689632981,346.29,0.000246,120]
[365469943,1749689638098,346.29,0.000246,120]
[365469944,1749689648297,346.29,0.000246,120]
[365469945,1749689653238,346.29,0.000246,120]
[365469946,1749689660435,346.29,0.000246,120]
[365469947,1749689667189,346.29,0.000246,120]
[365469948,1749689672713,346.29,0.000246,120]
[365469949,1749689679066,346.29,0.000246,120]
[365469950,1749689684648,346.29,0.000246,120]
[365469951,1749689691511,346.29,0.000246,120]
[365469952,1749689698115,346.29,0.000246,120]
[365469953,1749689705827,346.29,0.000246,120]
[365469954,1749689711522,346.29,0.000246,120]
[365469955,1749689741976,346.29,0.000246,120]
[365469956,1749689748093,346.29,0.000246,120]
[365469957,1749689753776,346.29,0.000246,120]
[365469958,1749689756492,151.0,0.00017966,2]
[365469959,1749689759377,346.29,0.000246,120]
[365469960,1749689765128,346.29,0.000246,120]
[365469961,1749689771043,346.29,0.000246,120]
[365469962,1749689772969,151.0,0.00017762,2]
[365469963,1749689776950,346.29,0.000246,120]
[365469964,1749689826191,151.0,0.00017208,2]
[365469965,1749689877422,346.29,0.000246,120]
[365469966,1749689883196,346.29,0.000246,120]
[365469967,1749689887711,346.29,0.000246,120]
[365469968,1749689892502,346.29,0.000246,120]
[365469969,1749689897308,346.29,0.000246,120]
[365469970,1749689903273,346.29,0.000246,120]
[365469971,1749689912849,346.29,0.000246,120]
[365469973,1749689926788,346.29,0.000246,120]
[365469974,1749689931352,346.29,0.000246,120]
[365469975,1749689936688,346.29,0.000246,120]
[365469976,1749689939403,309.81,0.00013699,2]
[365469977,1749689941403,346.29,0.000246,120]
[365469979,1749689946688,346.29,0.000246,120]
[365469980,1749689952471,346.29,0.000246,120]
[365469981,1749689960129,346.29,0.000246,120]
[365469982,1749689965317,346.29,0.000246,120]
[365469984,1749690058153,272.82259505,0.00017966,2]
[365469985,1749690076470,410.84239167,0.00016072,2]
[365469986,1749690076494,537.13760833,0.00016072,2]
[365469988,1749690107692,346.29,0.000246,120]
[365469989,1749690113436,346.29,0.000246,120]
[365469990,1749690117967,346.29,0.000246,120]
[365469991,1749690126238,346.29,0.000246,120]
[365469992,1749690130532,346.29,0.000246,120]
[365469993,1749690132020,163.0,0.00018,3]
[365469994,1749690135470,346.29,0.000246,120]
[365469995,1749690141875,346.29,0.000246,120]
[365469996,1749690146555,346.29,0.000246,120]
[365469997,1749690152787,346.29,0.000246,120]
[365469998,1749690161047,346.29,0.000246,120]
[365469999,1749690218314,163.0,0.00018,3]
[365470000,1749690249980,250.0,0.00017912,2]
[365470001,1749690278287,911.53,0.0001793,2]
[365470002,1749690334282,5000.01,0.00017939,2]
[365470003,1749690359546,279.31837113,0.00017966,2]
[365470004,1749690360647,239.41574668,0.00017966,2]
[365470005,1749690361429,205.21349715,0.00017966,2]
[365470006,1749690362144,175.89728327,0.00017966,2]
[365470007,1749690362922,151.0,0.00017966,2]
[365470008,1749690428431,-300.0,0.00018,2]
[365470009,1749690428452,-181.0,0.00018,2]
[365470010,1749690428474,-550.0,0.00018,2]
[365470011,1749690428495,-300.0,0.00018,2]
[365470012,1749690428516,-0.98060782,0.00018,7]
[365470013,1749690445113,-149.01939218,0.00018,7]
[365470014,1749690445133,-151.0,0.00018001,2]
[365470015,1749690445153,-151.0,0.00018001,2]
[365470016,1749690445173,-151.0,0.00018001,2]
[365470017,1749690445193,-151.0,0.00018001,2]
[365470018,1749690445212,-151.0,0.00018001,2]
[365470019,1749690445232,-151.0,0.00018001,2]
[365470020,1749690445255,-151.0,0.00018001,2]
[365470021,1749690445276,-151.0,0.00018001,2]
[365470022,1749690445296,-102.9750772,0.00018001,2]
[365470023,1749690487432,666.0,0.00017995,2]
[365470024,1749690491907,204.0,0.00017422,2]
[365470026,1749690531992,174.21786408,0.00017901,2]
[365470033,1749690631537,-300.0,0.00018,2]
[365470034,1749690631546,-498.32798818,0.00018,2]
[365470035,1749690631558,-701.67201182,0.00018,2]
[365470036,1749690631568,-48.0249228,0.00018001,2]
[365470037,1749690631578,-151.0,0.00018001,2]
[365470038,1749690631587,-151.0,0.00018001,2]
[365470039,1749690631597,-151.0,0.00018001,2]
[365470040,1749690631606,-151.0,0.00018001,2]
[365470041,1749690631616,-151.0,0.00018001,2]
[365470042,1749690631627,-151.0,0.00018001,2]
[365470043,1749690631637,-151.0,0.00018001,2]
[365470044,1749690631646,-151.0,0.00018001,2]
[365470045,1749690631656,-151.0,0.00018001,2]
[365470046,1749690631665,-151.0,0.00018001,2]
[365470047,1749690631674,-151.0,0.00018001,2]
[365470048,1749690631683,-151.0,0.00018001,2]
[365470049,1749690631693,-151.0,0.00018001,2]
[365470050,1749690631702,-15.89565458,0.00018001,2]
[365470051,1749690631713,-135.10434542,0.00018001,2]
[365470052,1749690631723,-151.0,0.00018001,2]
[365470053,1749690631732,-151.0,0.00018001,2]
[365470054,1749690631742,-151.0,0.00018001,2]
[365470055,1749690631751,-65.50056124,0.00018001,2]
[365470056,1749690631766,-85.49943876,0.00018001,2]
[365470057,1749690631776,-151.0,0.00018001,2]
[365470058,1749690631785,-151.0,0.00018001,2]
[365470059,1749690631794,-151.0,0.00018001,2]
[365470060,1749690631803,-151.0,0.00018001,2]
[365470061,1749690631813,-154.0,0.00018001,2]
[365470062,1749690631822,-151.0,0.00018001,2]
[365470063,1749690631832,-154.0,0.00018001,2]
[365470064,1749690631841,-151.0,0.00018001,2]
[365470065,1749690631850,-154.0,0.00018001,2]
[365470066,1749690631860,-166.56589911,0.00018001,2]
[365470067,1749690631869,-151.0,0.00018001,2]
[365470068,1749690631878,-148.61256318,0.00018001,2]
[365470069,1749690631890,-2.38743682,0.00018001,2]
[365470071,1749690631901,-151.0,0.00018001,2]
[365470072,1749690631910,-151.0,0.00018001,2]
[365470074,1749690631919,-151.0,0.00018001,2]
[365470075,1749690631928,-151.0,0.00018001,2]
[365470076,1749690631938,-151.0,0.00018001,2]
[365470077,1749690631947,-151.0,0.00018001,2]
[365470079,1749690631956,-151.0,0.00018001,2]
[365470081,1749690631966,-151.0,0.00018001,2]
[365470083,1749690631976,-151.0,0.00018001,2]
[365470085,1749690631984,-151.0,0.00018001,2]
[365470087,1749690631994,-151.0,0.00018001,2]
[365470089,1749690632003,-151.0,0.00018001,2]
[365470091,1749690632012,-151.0,0.00018001,2]
[365470093,1749690632021,-151.0,0.00018001,2]
[365470095,1749690632034,-151.0,0.00018001,2]
[365470097,1749690632043,-7.18229967,0.00018001,2]
[365470099,1749690632055,-143.81770033,0.00018001,2]
[365470100,1749690632064,-151.0,0.00018001,2]
[365470101,1749690632074,-151.0,0.00018001,2]
[365470102,1749690632084,-151.0,0.00018001,2]
[365470103,1749690632093,-247.86088608,0.00018001,2]
[365470104,1749690632102,-387.172734,0.00018192,2]
[365470105,1749690632114,-524.737266,0.00018192,2]
[365470106,1749690632123,-53.85413628,0.00018325,2]
[365470107,1749690632143,-339.39094645,0.00018325,2]
[365470108,1749690632152,-207.4,0.00018325,2]
[365470109,1749690632162,-947.98,0.00018336,2]
[365470110,1749690632171,-302.27,0.00018387,2]
[365470111,1749690632180,-300.43,0.00018387,2]
[365470112,1749690632189,-304.94,0.0001839,2]
[365470113,1749690632198,-301.1,0.0001839,2]
[365470114,1749690632207,-302.21,0.00018395,2]
[365470115,1749690632216,-302.34,0.00018395,2]
[365470116,1749690632225,-302.39,0.000184,2]
[365470117,1749690632235,-302.58,0.00018402,2]
[365470118,1749690632244,-300.08,0.0001841,2]
[365470119,1749690632253,-301.86,0.0001841,2]
[365470120,1749690632262,-304.75,0.00018423,2]
[365470121,1749690632271,-305.71,0.00018423,2]
[365470122,1749690632280,-305.54,0.00018423,2]
[365470123,1749690632289,-305.95,0.00018423,2]
[365470124,1749690632298,-268.68616846,0.00018423,2]
[365470125,1749690632309,-37.02383154,0.00018423,2]
[365470126,1749690632318,-827.11877938,0.00018423,2]
[365470127,1749690632330,-172.88122062,0.00018423,2]
[365470128,1749690632339,-242.99347874,0.0001874,2]
[365470129,1749690632358,-383.12875825,0.0001874,2]
[365470130,1749690632376,-476.55092889,0.0001874,2]
[365470131,1749690632385,-301.61,0.00018773,2]
[365470132,1749690632396,-150.0,0.00018773,2]
[365470133,1749690632405,-204.0,0.00018796,3]
[365470134,1749690632414,-210.58362301,0.000189,2]
[365470135,1749690632423,-210.58362287,0.00018967,2]
[365470136,1749690632431,-302.73,0.00018999,2]
[365470137,1749690632440,-1500.0,0.00019,4]
[365470138,1749690632450,-250.0,0.00019,2]
[365470139,1749690632459,-1508.748,0.00019,2]
[365470140,1749690632468,-210.58362287,0.00019033,2]
[365470141,1749690632477,-151.0,0.00019066,2]
[365470142,1749690632485,-151.0,0.00019066,2]
[365470143,1749690632495,-2480.64633399,0.00019068,2]
[365470144,1749690632504,-664.57640896,0.00019076,2]
[365470145,1749690632513,-2086.9674594,0.00019077,2]
[365470146,1749690632532,-300.0,0.00019077,2]
[365470147,1749690632542,-2232.3887144,0.00019077,2]
[365470148,1749690632554,-574.6,0.00019077,2]
[365470149,1749690632565,-6163.46778645,0.00019077,2]
[365470150,1749690637814,-1178.9475446,0.00019077,2]
[365470151,1749690637837,-383.27548359,0.00019077,2]
[365470152,1749690638020,-549.43756395,0.00019077,2]
[365470163,1749690639846,-808.08857676,0.00019077,2]
[365470164,1749690639903,-12242.84057085,0.00019077,2]
[365470165,1749690639916,-541.9938,0.00019077,2]
[365470166,1749690639930,-343.63124037,0.00019078,2]
[365470167,1749690639943,-175.78959237,0.00019078,2]
[365470168,1749690639956,-1809.26271467,0.00019078,2]
[365470169,1749690639973,-5455.02765609,0.00019078,2]
[365470170,1749690639995,-4471.36962924,0.00019078,2]
[365470171,1749690640008,-215.8552371,0.00019099,2]
[365470172,1749690640019,-254.17416584,0.00019099,2]
[365470173,1749690640036,-500.0,0.00019099,2]
[365470174,1749690640050,-500.0,0.00019099,2]
[365470175,1749690640064,-162.21695624,0.00019099,2]
[365470176,1749690640077,-500.0,0.00019099,2]
[365470177,1749690640091,-500.0,0.00019099,2]
[365470178,1749690640108,-261.78574106,0.00019099,2]
[365470179,1749690640121,-500.0,0.00019099,2]
[365470180,1749690640133,-200.99446736,0.00019099,2]
[365470181,1749690640149,-77201.29792705,0.000191,2]
[365470182,1749690640162,-1000.0,0.000191,2]
[365470183,1749690640175,-210.58362287,0.000191,2]
[365470184,1749690640188,-1078.0,0.00019102,2]
[365470185,1749690640200,-2480.6463339,0.00019142,2]
[365470186,1749690640214,-155.89872915,0.0001915,2]
[365470187,1749690640228,-343.63124031,0.00019158,2]
[365470188,1749690640240,-244.45,0.00019163,2]
[365470189,1749690640252,-244.45,0.00019163,2]
[365470190,1749690640264,-210.58362287,0.00019167,2]
[365470191,1749690640275,-5200.41526749,0.00019168,2]
[365470192,1749690640286,-244.45,0.00019168,2]
[365470194,1749690640301,-244.45,0.00019168,2]
[365470196,1749690640315,-244.45,0.00019168,2]
[365470197,1749690640326,-500.0,0.00019173,2]
[365470198,1749690640336,-500.0,0.00019173,2]
[365470199,1749690640348,-138849.75026431,0.00019173,2]
[365470201,1749690640361,-727.000001,0.00019176,2]
[365470203,1749690640373,-314.11360481,0.00019177,2]
[365470205,1749690640384,-192.29124723,0.00019177,2]
[365470206,1749690640396,-473.563483,0.00019178,2]
[365470207,1749690640408,-473.563483,0.00019178,2]
[365470208,1749690640423,-473.563483,0.00019178,2]
[365470209,1749690640435,-473.563483,0.00019178,2]
[365470210,1749690640447,-151.0,0.00019178,2]
[365470211,1749690640459,-151.0,0.00019178,2]